bitfinex-derivatives/quotes_BTCF0:USTF0_20210707
["timestamp","ask_amount","ask_price","bid_price","bid_amount"]
[1625625291414,2.47384881,34081.0,34080.0,11.61464387]
[1625625294721,2.47384881,34081.0,34080.0,11.70224387]
[1625625294960,2.47384881,34081.0,34080.0,11.61464387]
[1625625295622,2.56224881,34081.0,34080.0,11.61464387]
[1625625295744,1.20278102,34081.0,34080.0,11.61464387]
[1625625295985,1.20278102,34081.0,34080.0,11.70304387]
[1625625296406,1.20278102,34081.0,34080.0,11.61464387]
[1625625296524,0.51550212,34081.0,34080.0,11.61464387]
[1625625296764,0.08649723,34081.0,34080.0,11.61464387]
[1625625296884,0.08649723,34081.0,34080.0,7.00564387]
[1625625297006,0.25933582,34082.0,34080.0,7.00564387]
[1625625297246,0.51798975,34082.0,34081.0,6.39810608]
[1625625297368,0.51798975,34082.0,34081.0,6.64323802]
[1625625297485,0.86330055,34082.0,34081.0,6.64323802]
[1625625298328,0.51798975,34082.0,34081.0,6.64323802]
[1625625299049,0.86332476,34082.0,34081.0,6.64323802]
[1625625299172,0.34533501,34082.0,34081.0,6.64323802]
[1625625299470,0.51805077,34082.0,34081.0,6.64323802]
[1625625299892,0.60450103,34082.0,34081.0,6.64323802]
[1625625300074,0.25916602,34082.0,34081.0,6.64323802]
[1625625302174,0.25916602,34082.0,34081.0,6.40266258]
[1625625302295,1.20738496,34082.0,34081.0,6.40266258]
[1625625302535,1.20738496,34082.0,34081.0,4.84636651]
[1625625302536,3.70788446,34082.0,34081.0,4.84636651]
[1625625302836,3.70788446,34082.0,34081.0,3.46299222]
[1625625303015,5.08381799,34082.0,34081.0,3.46299222]
[1625625303436,5.56496887,34082.0,34081.0,2.25253972]
[1625625304456,5.56496887,34082.0,34081.0,2.38383972]
[1625625304577,5.56496887,34082.0,34081.0,2.39843972]
[1625625305359,5.56496887,34082.0,34081.0,3.6082891]
[1625625305659,4.18903534,34082.0,34081.0,3.6082891]
[1625625305779,4.18903534,34082.0,34081.0,8.6937891]
[1625625306381,4.18903534,34082.0,34081.0,10.07636599]
[1625625306981,3.9484599,34082.0,34081.0,10.07636599]
[1625625307102,3.44649446,34082.0,34081.0,10.37767599]
[1625625307281,3.44649446,34082.0,34081.0,10.46527599]
[1625625307461,2.24083336,34082.0,34081.0,11.18700231]
[1625625307583,1.20738496,34082.0,34081.0,11.18700231]
[1625625308003,0.25841544,34082.0,34081.0,12.74204804]
[1625625308545,0.08619583,34082.0,34081.0,12.74204804]
[1625625308727,0.25840656,34083.0,34081.0,12.74204804]
[1625625308964,0.25840656,34083.0,34082.0,6.39257617]
[1625625309205,0.25840656,34083.0,34082.0,6.39713359]
[1625625309868,0.60271962,34083.0,34082.0,6.39713359]
[1625625310229,0.25840656,34083.0,34082.0,6.39713359]
[1625625310528,0.51602879,34083.0,34082.0,4.84218263]
[1625625310712,1.20379873,34083.0,34082.0,4.84218263]
[1625625310950,2.23533196,34083.0,34082.0,4.84218263]
[1625625312031,2.23533196,34083.0,34082.0,5.12397263]
[1625625312213,1.20379873,34083.0,34082.0,5.12397263]
[1625625312512,0.51626698,34083.0,34082.0,6.67831929]
[1625625312634,0.60242742,34083.0,34082.0,6.67831929]
[1625625312812,0.60242742,34083.0,34082.0,6.76541929]
[1625625313233,0.60242742,34083.0,34082.0,6.67831929]
[1625625313413,0.51626698,34083.0,34082.0,5.12397263]
[1625625314014,0.60241292,34083.0,34082.0,5.12397263]
[1625625314194,0.25829226,34083.0,34082.0,6.67808576]
[1625625314314,0.25829226,34083.0,34082.0,6.76668576]
[1625625314857,0.25829226,34083.0,34082.0,6.67808576]
[1625625315096,0.08614594,34083.0,34082.0,6.67808576]
[1625625315339,0.60206609,34084.0,34082.0,6.67808576]
[1625625315578,0.60206609,34084.0,34083.0,4.83402009]
[1625625315820,0.25801164,34084.0,34083.0,4.83857196]
[1625625316301,0.60166484,34084.0,34083.0,4.83857196]
[1625625316484,0.25801164,34084.0,34083.0,4.83857196]
[1625625316967,0.60262893,34085.0,34083.0,6.39210095]
[1625625317206,0.51658254,34085.0,34084.0,4.83316395]
[1625625317389,0.51658254,34085.0,34084.0,4.83771582]
[1625625317929,0.60265021,34085.0,34084.0,4.83771582]
[1625625318168,0.51658254,34085.0,34084.0,4.83771582]
[1625625318589,0.86024031,34085.0,34084.0,4.83771582]
[1625625318951,0.5166512,34085.0,34084.0,4.83771582]
[1625625319314,0.5156512,34085.0,34084.0,4.83771582]
[1625625319853,0.5156512,34085.0,34084.0,9.42601582]
[1625625320092,0.85921501,34085.0,34084.0,9.42601582]
[1625625320333,0.51563349,34085.0,34084.0,9.42601582]
[1625625320576,0.85922759,34085.0,34084.0,9.42601582]
[1625625321053,0.5156995,34085.0,34084.0,9.42601582]
[1625625321355,0.85939733,34085.0,34084.0,9.42601582]
[1625625321956,0.5156822,34085.0,34084.0,9.42601582]
[1625625322198,0.8593185,34085.0,34084.0,9.42601582]
[1625625322917,0.51565698,34085.0,34084.0,9.42601582]
[1625625323161,0.85950707,34085.0,34084.0,9.42601582]
[1625625323399,0.51584814,34085.0,34084.0,9.42601582]
[1625625323940,0.51584814,34085.0,34084.0,9.51311582]
[1625625324720,0.60193832,34085.0,34084.0,9.51311582]
[1625625325984,0.25808823,34085.0,34084.0,9.51311582]
[1625625326109,0.25808823,34085.0,34084.0,9.42601582]
[1625625326223,0.60246513,34086.0,34084.0,9.42601582]
[1625625326465,0.25835712,34086.0,34085.0,4.82966059]
[1625625326705,0.08617638,34086.0,34085.0,4.83421099]
[1625625327305,1.5911365,34087.0,34085.0,4.83421099]
[1625625327426,1.5911365,34087.0,34086.0,4.82906984]
[1625625327605,1.5911365,34087.0,34086.0,5.31477097]
[1625625327727,0.9884,34087.0,34086.0,5.31477097]
[1625625329896,0.9884,34087.0,34086.0,6.8665602]
[1625625331700,0.9884,34087.0,34086.0,6.62598476]
[1625625331940,1.50510421,34087.0,34086.0,3.69446129]
[1625625332060,5.27170421,34087.0,34086.0,3.69446129]
[1625625332179,5.96049983,34087.0,34086.0,3.69446129]
[1625625332660,5.96049983,34087.0,34086.0,2.48719383]
[1625625332839,6.28115983,34087.0,34086.0,2.48719383]
[1625625332961,8.52075186,34087.0,34086.0,1.45239315]
[1625625333081,8.52075186,34087.0,34086.0,2.48704084]
[1625625333082,7.31483094,34087.0,34086.0,2.48704084]
[1625625333320,8.52102329,34087.0,34086.0,2.48704084]
[1625625333562,9.00217417,34087.0,34086.0,2.2464654]
[1625625333923,9.00217417,34087.0,34086.0,1.21181771]
[1625625333924,5.23557417,34087.0,34086.0,1.21181771]
[1625625334225,5.23557417,34087.0,34086.0,2.24657751]
[1625625334646,5.23557417,34087.0,34086.0,1.21181771]
[1625625335130,4.91491417,34087.0,34086.0,2.24668812]
[1625625335246,4.91491417,34087.0,34086.0,2.50269812]
[1625625335366,1.98625509,34087.0,34086.0,5.08892996]
[1625625335609,1.22897544,34087.0,34086.0,5.3295054]
[1625625335729,0.9884,34087.0,34086.0,5.4172054]
[1625625336330,0.9884,34087.0,34086.0,6.8777214]
[1625625336750,0.9884,34087.0,34086.0,5.3295054]
[1625625337050,0.9884,34087.0,34086.0,6.8764178]
[1625625337290,0.9884,34087.0,34086.0,5.3295054]
[1625625337533,0.9884,34087.0,34086.0,6.87710236]
[1625625337651,0.9884,34087.0,34086.0,7.1176778]
[1625625337953,0.9884,34087.0,34086.0,5.57008084]
[1625625339516,1.59259589,34087.0,34086.0,5.57008084]
[1625625339758,1.50618363,34087.0,34086.0,5.57008084]
[1625625339998,1.50602595,34087.0,34086.0,5.57008084]
[1625625340298,2.19615865,34087.0,34086.0,3.93474719]
[1625625341018,4.43804961,34087.0,34086.0,2.727839]
[1625625341259,3.23089082,34087.0,34086.0,3.93530294]
[1625625341500,3.23089082,34087.0,34086.0,2.727839]
[1625625341619,4.67859098,34087.0,34086.0,2.727839]
[1625625342281,4.67859098,34087.0,34086.0,1.69296859]
[1625625343126,6.0582598,34087.0,34086.0,1.69296859]
[1625625343304,6.0582598,34087.0,34086.0,2.72859195]
[1625625343547,4.67859098,34087.0,34086.0,2.72859195]
[1625625346133,4.67859098,34087.0,34086.0,3.93686079]
[1625625349982,4.67859098,34087.0,34086.0,5.31460652]
[1625625350702,4.67859098,34087.0,34086.0,3.93686079]
[1625625357440,6.06115613,34087.0,34086.0,3.93686079]
[1625625357618,6.14925613,34087.0,34086.0,3.93686079]
[1625625357798,6.06115613,34087.0,34086.0,3.93686079]
[1625625359001,6.06115613,34087.0,34086.0,3.45570991]
[1625625359243,6.06115613,34087.0,34086.0,2.24744107]
[1625625359244,6.14935613,34087.0,34086.0,2.24744107]
[1625625359486,7.7048544,34087.0,34086.0,0.52195059]
[1625625359723,7.94542984,34087.0,34086.0,0.51995517]
[1625625359843,7.95845771,34087.0,34086.0,0.51995517]
[1625625359966,7.95845771,34087.0,34086.0,0.00455025]
[1625625360862,7.87025771,34087.0,34086.0,0.00455025]
[1625625361825,7.87025771,34087.0,34085.0,0.00457131]
[1625625361948,7.95775771,34087.0,34085.0,0.00457131]
[1625625362065,0.0130283,34086.0,34085.0,0.00457131]
[1625625362245,6.40766596,34086.0,34085.0,0.00457131]
[1625625362908,6.40766596,34086.0,34085.0,0.26231217]
[1625625363147,6.39463766,34086.0,34085.0,0.86342929]
[1625625363268,6.39463766,34086.0,34085.0,4.99892929]
[1625625363447,6.39463766,34086.0,34085.0,4.6553861]
[1625625363448,4.83926465,34086.0,34085.0,4.6553861]
[1625625363569,4.83926465,34086.0,34085.0,5.34208475]
[1625625363748,4.83926465,34086.0,34085.0,5.58266019]
[1625625364169,4.83926465,34086.0,34085.0,6.61197478]
[1625625364589,4.79732491,34086.0,34085.0,6.61197478]
[1625625368379,4.88472491,34086.0,34085.0,6.61197478]
[1625625368683,4.79732491,34086.0,34085.0,6.61197478]
[1625625368805,4.79732491,34086.0,34085.0,7.81226022]
[1625625369762,4.79732491,34086.0,34085.0,6.61197478]
[1625625370183,4.79732491,34086.0,34085.0,2.47647478]
[1625625370485,4.79732491,34086.0,34085.0,3.67669709]
[1625625370604,5.04509491,34086.0,34085.0,3.43612165]
[1625625370725,5.04509491,34086.0,34085.0,2.23589934]
[1625625370964,5.05812247,34086.0,34085.0,2.23589934]
[1625625371203,6.61371463,34086.0,34085.0,1.20658475]
[1625625372405,6.61371463,34086.0,34085.0,0.5198861]
[1625625373487,6.61371463,34086.0,34085.0,0.86311499]
[1625625376496,6.61371463,34086.0,34085.0,0.51941029]
[1625625378725,6.61371463,34086.0,34085.0,0.26207231]
[1625625379203,6.61371463,34086.0,34085.0,0.09046222]
[1625625379504,6.61371463,34086.0,34085.0,6.222e-05]
[1625625380645,6.61371463,34086.0,34084.0,0.17174936]
[1625625380885,5.70176956,34085.0,34083.0,0.51492642]
[1625625381064,5.71483989,34085.0,34083.0,0.51492642]
[1625625381185,4.14670043,34084.0,34083.0,0.51492642]
[1625625381306,4.15977092,34084.0,34083.0,0.51492642]
[1625625381548,4.15977092,34084.0,34083.0,0.51948415]
[1625625381908,4.40034636,34084.0,34083.0,0.51948415]
[1625625382088,4.38727587,34084.0,34083.0,0.51948415]
[1625625382933,4.40034676,34084.0,34083.0,0.51948415]
[1625625383058,4.40034676,34084.0,34083.0,0.86231704]
[1625625383235,4.38727587,34084.0,34083.0,0.86231704]
[1625625383413,4.38727587,34084.0,34083.0,0.51892555]
[1625625383832,4.38727587,34084.0,34083.0,0.86177418]
[1625625383951,4.38727587,34084.0,34083.0,1.10234962]
[1625625384492,4.38727587,34084.0,34083.0,0.75950099]
[1625625385154,4.38727587,34084.0,34083.0,1.78757342]
[1625625385463,4.38727587,34084.0,34083.0,0.75950099]
[1625625385695,4.38727587,34084.0,34083.0,1.7875869]
[1625625386598,4.71388587,34084.0,34083.0,1.7875869]
[1625625386777,4.71388587,34084.0,34083.0,1.54701146]
[1625625386899,4.71388587,34084.0,34083.0,0.51892555]
[1625625387139,4.726956,34084.0,34083.0,0.51892555]
[1625625387681,4.726956,34084.0,34083.0,0.86184666]
[1625625388943,4.726956,34084.0,34083.0,0.51908681]
[1625625389184,4.726956,34084.0,34083.0,0.86238957]
[1625625390932,4.726956,34084.0,34083.0,0.51910566]
[1625625391173,6.28225532,34084.0,34083.0,0.86248673]
[1625625391355,4.726956,34084.0,34083.0,0.86248673]
[1625625391716,6.28218937,34084.0,34083.0,0.86248673]
[1625625392322,6.28218937,34084.0,34083.0,0.51915857]
[1625625396288,6.28218937,34084.0,34083.0,0.51460084]
[1625625396588,6.28218937,34084.0,34083.0,0.51917162]
[1625625397250,6.28218937,34084.0,34083.0,0.86255135]
[1625625397794,6.28218937,34084.0,34083.0,0.00457078]
[1625625398031,6.37058937,34084.0,34083.0,0.00457078]
[1625625398390,6.28218937,34084.0,34082.0,0.00457132]
[1625625398509,5.70457001,34083.0,34082.0,0.00457132]
[1625625398629,5.70457001,34083.0,34080.0,0.51670201]
[1625625398751,5.70457001,34083.0,34080.0,0.17290067]
[1625625398870,5.71759677,34083.0,34082.0,0.00457141]
[1625625398991,10.71299677,34083.0,34082.0,0.00457141]
[1625625399111,10.69997001,34083.0,34081.0,0.00457145]
[1625625399413,5.70309019,34082.0,34081.0,0.00457145]
[1625625400071,5.94366563,34082.0,34081.0,0.00457145]
[1625625406623,5.94366563,34082.0,34080.0,0.0045689]
[1625625406863,5.94366563,34082.0,34081.0,0.0045689]
[1625625406983,0.24057544,34082.0,34081.0,0.0045689]
[1625625407224,5.94097917,34082.0,34081.0,0.0045689]
[1625625407344,5.95401238,34082.0,34080.0,0.00456895]
[1625625407645,0.01303318,34081.0,34080.0,0.00456895]
[1625625407827,5.71305441,34081.0,34080.0,0.00456895]
[1625625408005,5.95362985,34081.0,34080.0,0.00456895]
[1625625410109,5.95362985,34081.0,34079.0,0.00456904]
[1625625410351,5.95362985,34081.0,34080.0,0.00456917]
[1625625410471,0.25360862,34081.0,34080.0,0.00456917]
[1625625410590,0.24057544,34081.0,34080.0,0.00456917]
[1625625410713,5.94103759,34081.0,34080.0,0.00456917]
[1625625410830,5.95407094,34081.0,34079.0,0.004569]
[1625625411071,0.01303356,34080.0,34079.0,0.004569]
[1625625411190,6.04298819,34080.0,34079.0,0.004569]
[1625625413471,6.02995463,34080.0,34079.0,0.004569]
[1625625413651,4.14595708,34080.0,34079.0,0.17649726]
[1625625414014,4.14595708,34080.0,34079.0,0.52044367]
[1625625414974,5.70072007,34080.0,34079.0,0.52044367]
[1625625415213,4.14595708,34080.0,34079.0,0.52044367]
[1625625415334,4.15898801,34080.0,34079.0,0.52044367]
[1625625415454,5.71369818,34080.0,34079.0,0.17649726]
[1625625417797,4.15898801,34080.0,34079.0,0.52046015]
[1625625418101,5.71414369,34080.0,34079.0,0.52046015]
[1625625419549,4.15898801,34080.0,34079.0,0.52043848]
[1625625419847,4.14595708,34080.0,34079.0,0.52043848]
[1625625419967,5.70112189,34080.0,34079.0,0.52058748]
[1625625420087,5.71415151,34080.0,34079.0,0.52058748]
[1625625421829,6.03162151,34080.0,34079.0,0.52058748]
[1625625421949,0.33049962,34080.0,34079.0,0.52058748]
[1625625422071,4.7183579,34080.0,34079.0,0.00456909]
[1625625422972,4.7183579,34080.0,34078.0,0.00457208]
[1625625423211,3.45591475,34079.0,34078.0,0.00457208]
[1625625423331,5.7152771,34079.0,34078.0,0.00457208]
[1625625424292,5.7152771,34079.0,34077.0,0.00457692]
[1625625424534,5.8025771,34079.0,34077.0,0.00457692]
[1625625424654,6.40694708,34078.0,34077.0,0.00457692]
[1625625425376,6.40694708,34078.0,34076.0,0.001]
[1625625425616,6.39416485,34077.0,34076.0,0.001]
[1625625425976,6.40717558,34077.0,34076.0,0.00557734]
[1625625426096,10.98215102,34077.0,34076.0,0.00557734]
[1625625427424,10.98215102,34077.0,34076.0,0.00457734]
[1625625427784,10.98215102,34077.0,34075.0,0.00457721]
[1625625428025,4.58798617,34077.0,34076.0,0.00457725]
[1625625428263,10.98049812,34077.0,34075.0,0.0045772]
[1625625428504,6.39250602,34076.0,34075.0,0.0045772]
[1625625428624,6.40551642,34076.0,34075.0,0.0045772]
[1625625430126,6.64609186,34076.0,34075.0,0.0045772]
[1625625430367,6.64609186,34076.0,34075.0,0.17732563]
[1625625430910,6.63308146,34076.0,34075.0,0.17732563]
[1625625431693,6.64609163,34076.0,34075.0,0.17732563]
[1625625431814,6.64609163,34076.0,34075.0,0.0045772]
[1625625436754,6.64609163,34076.0,34074.0,0.00456678]
[1625625436988,6.40126195,34075.0,34074.0,0.00456678]
[1625625437831,6.48886195,34075.0,34074.0,0.00456678]
[1625625438253,6.72943739,34075.0,34074.0,0.00456678]
[1625625439695,6.72943739,34075.0,34074.0,0.17728785]
[1625625440177,6.72943739,34075.0,34074.0,0.00456678]
[1625625441859,6.72943739,34075.0,34074.0,0.17728892]
[1625625442279,6.72943739,34075.0,34074.0,0.00456678]
[1625625443063,0.6347351,34075.0,34074.0,0.00456678]
[1625625443182,7.02625958,34075.0,34074.0,0.00456678]
[1625625443422,7.02625958,34075.0,34074.0,0.17708731]
[1625625444685,7.02625958,34075.0,34074.0,0.00456678]
[1625625446735,7.02625958,34075.0,34073.0,0.00456643]
[1625625447034,6.40633299,34074.0,34073.0,0.00456643]
[1625625448175,6.40633299,34074.0,34073.0,0.17577599]
[1625625448594,6.40633299,34074.0,34073.0,0.00456643]
[1625625449737,6.40633299,34074.0,34073.0,0.17597843]
[1625625450702,11.36423299,34074.0,34073.0,0.17597843]
[1625625455572,11.36423299,34074.0,34073.0,0.51864882]
[1625625456176,6.40633299,34074.0,34073.0,0.51864882]
[1625625456597,6.40633299,34074.0,34073.0,0.51847828]
[1625625456598,4.85128967,34074.0,34073.0,0.51847828]
[1625625456778,4.85128967,34074.0,34073.0,1.20346991]
[1625625456897,4.85128967,34074.0,34073.0,4.85126991]
[1625625457022,4.85128967,34074.0,34073.0,5.87801658]
[1625625457259,3.46900975,34074.0,34073.0,7.07478107]
[1625625457379,3.45595895,34074.0,34073.0,7.07478107]
[1625625458283,3.45595895,34074.0,34073.0,7.31535651]
[1625625460209,2.24644242,34074.0,34073.0,8.67096587]
[1625625462610,3.4567459,34074.0,34073.0,7.31535651]
[1625625467664,3.4567459,34074.0,34073.0,8.67667959]
[1625625470489,2.24644242,34074.0,34073.0,8.67667959]
[1625625470606,2.24644242,34074.0,34073.0,8.89426959]
[1625625473796,0.24534242,34074.0,34073.0,8.89426959]
[1625625473919,0.64569813,34077.0,34073.0,8.89426959]
[1625625474095,0.51893067,34076.0,34073.0,10.42438113]
[1625625474217,1.03734275,34079.0,34075.0,1.35903373]
[1625625474218,0.51868793,34079.0,34075.0,1.35903373]
[1625625474335,0.51868793,34079.0,34075.0,2.88794668]
[1625625474516,0.17295357,34079.0,34078.0,3.60826689]
[1625625474755,0.51867891,34080.0,34078.0,3.60826689]
[1625625474876,0.51867891,34080.0,34078.0,3.61283431]
[1625625475060,0.17294795,34080.0,34079.0,1.35762681]
[1625625475176,0.17294795,34080.0,34079.0,2.88966605]
[1625625475722,0.51866214,34081.0,34079.0,2.88966605]
[1625625475840,0.51866214,34081.0,34080.0,3.6087]
[1625625475960,0.51866214,34081.0,34080.0,5.22036715]
[1625625476141,0.17294408,34081.0,34080.0,5.22036715]
[1625625476262,0.17294408,34081.0,34080.0,5.22493439]
[1625625476562,0.51848935,34081.0,34080.0,5.22493439]
[1625625478065,0.52017779,34082.0,34080.0,5.22493439]
[1625625478305,0.17278351,34081.0,34080.0,3.8619]
[1625625478483,0.51818446,34081.0,34080.0,5.21947178]
[1625625478603,0.51818446,34081.0,34080.0,5.22403903]
[1625625479445,0.51818446,34081.0,34080.0,3.86646725]
[1625625482628,0.51818446,34081.0,34080.0,3.61326725]
[1625625484189,0.17278351,34081.0,34080.0,3.84096725]
[1625625484309,0.17465233,34082.0,34080.0,5.19492138]
[1625625484550,0.17465233,34082.0,34081.0,0.24057544]
[1625625484914,0.17465233,34082.0,34081.0,0.24514282]
[1625625485571,0.002,34082.0,34081.0,0.24514282]
[1625625487376,0.1726107,34083.0,34081.0,0.24514282]
[1625625487498,0.51763324,34083.0,34081.0,0.24514282]
[1625625487737,0.51763324,34083.0,34082.0,0.00456695]
[1625625487917,0.1726107,34083.0,34082.0,0.00456695]
[1625625488279,0.51750293,34084.0,34082.0,0.00456695]
[1625625488521,0.51750293,34084.0,34083.0,0.24057544]
[1625625488878,0.51750293,34084.0,34083.0,0.24514235]
[1625625489961,0.17255425,34084.0,34083.0,0.24514235]
[1625625490203,0.51740848,34084.0,34083.0,0.24514235]
[1625625490623,0.17255425,34084.0,34083.0,0.24514235]
[1625625492064,0.51824618,34085.0,34084.0,5.049]
[1625625492364,0.51824618,34085.0,34084.0,5.05356699]
[1625625493445,0.51824618,34085.0,34084.0,5.05356696]
[1625625494107,0.34579448,34085.0,34084.0,5.05356696]
[1625625495251,0.001,34085.0,34084.0,5.05356696]
[1625625495492,0.001,34085.0,34084.0,5.3904266]
[1625625496033,0.51805636,34085.0,34084.0,5.05356696]
[1625625496332,0.51705636,34085.0,34084.0,5.05356696]
[1625625497896,0.17240953,34085.0,34084.0,5.05356696]
[1625625498136,0.51702369,34085.0,34084.0,5.05356696]
[1625625498377,0.17240953,34085.0,34084.0,5.05356696]
[1625625498918,0.51702466,34085.0,34084.0,5.05356696]
[1625625499099,0.17240953,34085.0,34084.0,5.05356696]
[1625625500005,0.51699687,34086.0,34084.0,5.05356696]
[1625625500608,1.50533787,34087.0,34085.0,0.00457712]
[1625625501747,1.50533787,34087.0,34086.0,0.33635775]
[1625625502110,1.33296785,34087.0,34086.0,0.50913629]
[1625625502529,0.9884,34087.0,34086.0,0.50913629]
[1625625502648,0.9884,34087.0,34086.0,0.74971173]
[1625625504630,1.33296817,34087.0,34086.0,0.58151039]
[1625625504869,1.50533772,34087.0,34086.0,0.58151039]
[1625625505169,1.50533772,34087.0,34086.0,0.24515264]
[1625625506249,1.50533772,34087.0,34086.0,4.46505264]
[1625625507211,1.33296817,34087.0,34086.0,4.46505264]
[1625625507454,0.9884,34087.0,34086.0,4.46505264]
[1625625508417,1.50537741,34087.0,34086.0,4.46505264]
[1625625509081,1.3329942,34087.0,34086.0,4.46505264]
[1625625510223,0.9884,34087.0,34086.0,4.46505264]
[1625625510585,5.4104,34087.0,34086.0,0.24515264]
[1625625510706,5.70365,34087.0,34086.0,0.58279347]
[1625625510947,6.73740583,34087.0,34086.0,0.24515264]
[1625625511848,7.94354179,34087.0,34086.0,0.24515264]
[1625625511967,7.95653838,34087.0,34086.0,0.0045772]
[1625625512088,9.33524031,34087.0,34086.0,0.0045772]
[1625625512209,9.33524031,34087.0,34084.0,0.00457781]
[1625625512507,9.33524031,34087.0,34086.0,0.00457793]
[1625625512628,6.19779747,34087.0,34086.0,0.00457793]
[1625625512749,6.18480088,34087.0,34085.0,0.00457793]
[1625625512928,9.80434993,34087.0,34085.0,0.00457793]
[1625625513048,3.6204683,34086.0,34084.0,0.00457793]
[1625625513289,2.24128376,34085.0,34083.0,0.50904408]
[1625625513529,1.03445657,34084.0,34083.0,0.17028932]
[1625625513770,1.03445657,34084.0,34083.0,0.50914226]
[1625625513892,5.85845657,34084.0,34083.0,0.51372025]
[1625625514734,6.09903201,34084.0,34083.0,4.97717799]
[1625625514974,5.06457544,34084.0,34083.0,5.9937392]
[1625625515577,0.24057544,34084.0,34083.0,5.9937392]
[1625625515938,1.27543549,34084.0,34083.0,5.9937392]
[1625625516240,0.24057544,34084.0,34083.0,5.9937392]
[1625625516601,0.75842043,34084.0,34083.0,7.17930552]
[1625625516719,0.75842043,34084.0,34083.0,7.6604564]
[1625625516902,0.24057544,34084.0,34083.0,9.01488479]
[1625625517320,0.24057544,34084.0,34083.0,9.01388479]
[1625625518881,0.24057544,34084.0,34083.0,9.25328479]
[1625625521646,0.51782821,34086.0,34083.0,9.25328479]
[1625625521945,0.51782821,34086.0,34085.0,2.19683388]
[1625625522424,0.51782821,34086.0,34085.0,2.20140487]
[1625625523204,0.9894,34087.0,34085.0,2.20140487]
[1625625523327,5.3379,34087.0,34085.0,2.20140487]
[1625625523447,5.3379,34087.0,34084.0,1.35189778]
[1625625523448,5.3379,34087.0,34086.0,2.20179473]
[1625625523809,5.3379,34087.0,34086.0,6.17209473]
[1625625523928,6.3734171,34087.0,34086.0,4.98897429]
[1625625524168,7.58179468,34087.0,34086.0,4.98897429]
[1625625526394,7.58079468,34087.0,34086.0,4.98897429]
[1625625527537,5.3369,34087.0,34086.0,4.98897429]
[1625625528258,5.3369,34087.0,34086.0,6.17417222]
[1625625528378,5.3369,34087.0,34086.0,6.17417223]
[1625625528919,5.3369,34087.0,34086.0,4.9889743]
[1625625529640,6.71932523,34087.0,34086.0,4.9889743]
[1625625532164,6.71932523,34087.0,34086.0,6.17804359]
[1625625533905,7.41132329,34087.0,34086.0,6.85739953]
[1625625534627,3.06282329,34087.0,34086.0,6.85739953]
[1625625538478,3.06282329,34087.0,34086.0,5.66833024]
[1625625539983,3.14982329,34087.0,34086.0,5.66833024]
[1625625540226,3.06282329,34087.0,34086.0,1.69803024]
[1625625540524,4.61988186,34087.0,34086.0,0.683927]
[1625625541185,4.70658186,34087.0,34086.0,0.683927]
[1625625542566,4.61988186,34087.0,34086.0,0.683927]
[1625625542748,4.63290549,34087.0,34086.0,0.683927]
[1625625543166,4.61988186,34087.0,34086.0,0.683927]
[1625625543948,4.63290498,34087.0,34086.0,0.683927]
[1625625545568,4.63290498,34087.0,34086.0,5.561227]
[1625625547015,4.63290498,34087.0,34086.0,0.683927]
[1625625548518,4.63290498,34087.0,34086.0,0.00457106]
[1625625548759,4.63290498,34087.0,34086.0,0.3446608]
[1625625548880,4.87348042,34087.0,34086.0,0.3446608]
[1625625549240,4.87348042,34087.0,34086.0,0.5147095]
[1625625549601,8.47448042,34087.0,34086.0,0.5147095]
[1625625549902,8.47448042,34087.0,34086.0,0.17461976]
[1625625550202,8.47448042,34087.0,34086.0,0.00457106]
[1625625553147,8.56138042,34087.0,34086.0,0.00457106]
[1625625555311,8.47448042,34087.0,34086.0,0.00457106]
[1625625556391,8.56128042,34087.0,34086.0,0.00457106]
[1625625557114,8.47448042,34087.0,34086.0,0.00457106]
[1625625558136,8.56328042,34087.0,34086.0,0.00457106]
[1625625558259,8.56328042,34087.0,34085.0,0.00457549]
[1625625558376,5.87725403,34086.0,34085.0,0.00457549]
[1625625558496,5.89026234,34086.0,34085.0,0.00457549]
[1625625558857,6.13083778,34086.0,34085.0,0.00457549]
[1625625560723,6.13083778,34086.0,34085.0,0.08998141]
[1625625561745,6.11782947,34086.0,34085.0,5.08158141]
[1625625561867,6.11782947,34086.0,34085.0,5.33840482]
[1625625562105,4.56214167,34086.0,34085.0,4.99617549]
[1625625562224,4.56214167,34086.0,34085.0,0.00457549]
[1625625562346,4.56214167,34086.0,34085.0,0.68933643]
[1625625563551,4.56214167,34086.0,34085.0,1.71656154]
[1625625563667,4.56214167,34086.0,34085.0,5.25126154]
[1625625564030,5.08074016,34086.0,34085.0,5.76481922]
[1625625567879,5.08074016,34086.0,34085.0,2.23011922]
[1625625569688,5.09374414,34086.0,34085.0,1.20289411]
[1625625573112,5.41634414,34086.0,34085.0,1.20289411]
[1625625576597,5.41634414,34086.0,34085.0,0.51813317]
[1625625577317,5.41634414,34086.0,34085.0,1.19669649]
[1625625577861,6.97212264,34086.0,34085.0,0.85752483]
[1625625578039,6.97212264,34086.0,34085.0,0.51367622]
[1625625578281,6.97212264,34086.0,34085.0,0.85304194]
[1625625580626,6.97212264,34086.0,34085.0,0.51361467]
[1625625580927,6.97212264,34086.0,34085.0,0.85276908]
[1625625581170,5.41634414,34086.0,34085.0,6.35833457]
[1625625581293,5.09374414,34086.0,34085.0,6.35833457]
[1625625582313,9.77264414,34086.0,34085.0,6.35833457]
[1625625582790,9.77264414,34086.0,34085.0,7.37607498]
[1625625583994,9.77264414,34086.0,34085.0,2.20937498]
[1625625587897,5.08074016,34086.0,34085.0,2.20937498]
[1625625588256,5.08074016,34086.0,34085.0,3.39611618]
[1625625589039,5.08074016,34086.0,34085.0,3.63669162]
[1625625589705,2.48786956,34086.0,34085.0,4.9922746]
[1625625590240,1.45068675,34086.0,34085.0,6.51664893]
[1625625590899,0.75917393,34086.0,34085.0,6.51664893]
[1625625591201,1.45093217,34086.0,34085.0,6.51664893]
[1625625591379,0.75917393,34086.0,34085.0,6.51664893]
[1625625592882,1.45073315,34086.0,34085.0,4.9922746]
[1625625593127,2.48801901,34086.0,34085.0,4.9922746]
[1625625593786,2.48801901,34086.0,34085.0,3.63669162]
[1625625593907,3.69813388,34086.0,34085.0,3.63669162]
[1625625594328,2.48801901,34086.0,34085.0,5.28976355]
[1625625596132,2.48801901,34086.0,34085.0,4.99145355]
[1625625601960,1.45073315,34086.0,34085.0,4.99145355]
[1625625602442,2.48762592,34086.0,34085.0,4.99145355]
[1625625602802,1.45073315,34086.0,34085.0,4.99145355]
[1625625607733,1.45073315,34086.0,34085.0,5.28121355]
[1625625607911,1.45073315,34086.0,34085.0,8.94901355]
[1625625608752,1.21015771,34086.0,34085.0,8.94901355]
[1625625608874,0.51859849,34086.0,34085.0,8.94901355]
[1625625609114,0.9884,34087.0,34085.0,10.46527991]
[1625625609416,0.9884,34087.0,34086.0,6.23015832]
[1625625609535,0.9884,34087.0,34086.0,6.23473619]
[1625625611158,0.9884,34087.0,34086.0,6.54811163]
[1625625611274,0.001,34089.0,34086.0,6.54811163]
[1625625611459,0.001,34089.0,34088.0,4.21443611]
[1625625611576,0.001,34089.0,34088.0,6.23736544]
[1625625611815,0.001,34089.0,34088.0,6.24194299]
[1625625613196,0.001,34089.0,34088.0,6.48251843]